bitfinex-derivatives/quotes_ETHF0:USTF0_20250217
["timestamp","ask_amount","ask_price","bid_price","bid_amount"]
[1739800614643,3.62288,2777.1,2777.0,0.54041257]
[1739800614849,3.62288,2777.1,2777.0,0.00539782]
[1739800615048,3.62288,2777.1,2777.0,0.54052573]
[1739800616857,3.62288,2777.1,2777.0,0.98334083]
[1739800617154,3.62288,2777.1,2777.0,0.98348704]
[1739800619154,3.62288,2777.1,2777.0,0.98413714]
[1739800619752,3.62288,2777.1,2777.0,0.98434002]
[1739800620057,3.62288,2777.1,2776.5,0.5349]
[1739800620058,0.72021,2776.6,2776.5,0.5349]
[1739800620251,3.23721,2776.6,2776.5,1.07118528]
[1739800620858,3.23721,2776.6,2775.8,3.2078]
[1739800620859,5.7248,2776.6,2775.8,3.2078]
[1739800621048,0.72037,2776.0,2775.9,0.5469]
[1739800621257,0.72037,2776.0,2775.9,0.55049854]
[1739800621457,2.517,2776.1,2775.9,0.55049854]
[1739800621655,3.23735,2776.1,2775.9,0.55049854]
[1739800621853,2.517,2776.1,2775.9,0.55049854]
[1739800622057,7.0383722,2776.6,2775.9,0.55049854]
[1739800622250,0.72027,2776.4,2776.0,0.72034]
[1739800622562,0.72029,2776.3,2776.0,0.72034]
[1739800622952,0.7203,2776.3,2776.0,0.72034]
[1739800623155,2.516,2776.5,2776.1,3.2078]
[1739800623355,0.72027,2776.4,2776.2,1.1103]
[1739800623558,2.516,2776.5,2776.2,1.1103]
[1739800623958,2.516,2776.5,2776.2,1.8306]
[1739800624261,3.23624,2776.5,2776.2,1.8306]
[1739800624457,2.516,2776.5,2776.2,1.1103]
[1739800624661,3.23625,2776.5,2776.2,1.1103]
[1739800624860,3.23625,2776.5,2776.3,0.72029]
[1739800625357,3.23624,2776.5,2776.3,0.72029]
[1739800625557,0.72027,2776.4,2776.2,1.1103]
[1739800625762,3.23625,2776.5,2776.3,0.72028]
[1739800626265,3.23625,2776.5,2776.4,3.2078]
[1739800626570,2.516,2776.5,2776.4,3.92806]
[1739800626757,3.23624,2776.5,2776.4,3.2078]
[1739800626959,3.23624,2776.5,2776.4,3.92806]
[1739800627158,2.516,2776.5,2776.4,3.92806]
[1739800627852,3.23624,2776.5,2776.4,3.92806]
[1739800629164,3.23624,2776.5,2776.4,3.2078]
[1739800630959,0.72026,2776.4,2776.3,0.72028]
[1739800631159,2.516,2776.5,2776.4,0.72026]
[1739800631360,2.516,2776.5,2776.4,3.92806]
[1739800631758,3.23624,2776.5,2776.4,3.92806]
[1739800632364,2.516,2776.5,2776.4,3.92806]
[1739800632561,3.23624,2776.5,2776.4,3.92806]
[1739800632766,3.23624,2776.5,2776.4,3.2078]
[1739800633067,2.516,2776.5,2776.4,3.92806]
[1739800633962,2.516,2776.5,2776.4,4.461963]
[1739800634464,3.06110776,2776.8,2776.7,0.72018]
[1739800634664,6.27026776,2776.8,2776.7,1.254083]
[1739800634864,3.78126776,2776.8,2776.7,1.254083]
[1739800635061,6.27026776,2776.8,2776.7,1.254083]
[1739800635766,6.27026776,2776.8,2776.7,0.533903]
[1739800636366,6.27026776,2776.8,2776.7,3.741703]
[1739800636566,6.27026776,2776.8,2776.7,4.461883]
[1739800637159,5.55010776,2776.8,2776.7,4.461883]
[1739800637362,6.27026776,2776.8,2776.7,4.461883]
[1739800637668,6.27026776,2776.8,2776.7,3.741703]
[1739800637870,6.27026776,2776.8,2776.7,3.2078]
[1739800638071,6.27026776,2776.8,2776.7,3.74164208]
[1739800638366,6.27026776,2776.8,2776.7,3.2078]
[1739800638567,6.27026776,2776.8,2776.7,3.7416617]
[1739800639474,6.27026776,2776.8,2776.7,4.4618417]
[1739800639667,6.27026776,2776.8,2776.7,3.7416617]
[1739800640163,6.27026776,2776.8,2776.7,3.74159959]
[1739800640959,5.55010776,2776.8,2776.7,3.74159959]
[1739800641171,6.27026776,2776.8,2776.7,4.46177959]
[1739800641372,6.27026776,2776.8,2776.7,3.74159959]
[1739800641966,6.27026776,2776.8,2776.7,0.53379959]
[1739800642174,6.27026776,2776.8,2776.7,0.5338051]
[1739800643366,5.55010776,2776.8,2776.7,0.5338051]
[1739800643568,6.27026776,2776.8,2776.7,0.5338051]
[1739800646675,0.5443,2777.1,2776.7,0.5338051]
[1739800646876,2.473,2777.0,2776.9,3.92793]
[1739800647071,3.19311,2777.0,2776.9,3.74149311]
[1739800647270,2.473,2777.0,2776.9,4.46162311]
[1739800647468,0.72011,2777.0,2776.9,4.46162311]
[1739800647663,0.72011,2777.0,2776.9,3.74149311]
[1739800648467,0.72011,2777.0,2776.9,3.7415343]
[1739800648673,0.72011,2777.0,2776.9,0.5337343]
[1739800650178,5.54110776,2777.1,2776.9,0.5337343]
[1739800650378,6.26118776,2777.1,2777.0,0.53377354]
[1739800651770,3.20008,2777.1,2777.0,0.53377354]
[1739800653066,2.48,2777.1,2777.0,0.53507733]
[1739800653273,3.20008,2777.1,2777.0,0.53507733]
[1739800654778,3.56088,2777.1,2777.0,0.53548249]
[1739800656167,3.20008,2777.1,2777.0,0.53548249]
[1739800656585,3.20008,2777.1,2777.0,1.07308249]
[1739800656881,2.469,2777.1,2777.0,1.07308249]
[1739800657072,3.18908,2777.1,2777.0,0.53548249]
[1739800658775,3.18908,2777.1,2776.8,0.72016]
[1739800658776,2.469,2777.1,2776.8,0.72016]
[1739800658981,2.469,2777.1,2776.9,0.53532611]
[1739800659177,2.469,2777.1,2777.0,1.25543611]
[1739800659372,2.469,2777.1,2777.0,1.81693611]
[1739800659779,2.464,2777.1,2777.0,1.81693611]
[1739800659980,3.06110776,2777.2,2777.1,0.72008]
[1739800660176,5.52410776,2777.2,2777.1,1.25540611]
[1739800660377,6.24415776,2777.2,2777.1,1.79670611]
[1739800660678,6.24415776,2777.2,2777.1,1.07662611]
[1739800660879,6.24415776,2777.2,2777.1,1.07651579]
[1739800662182,5.52410776,2777.2,2777.1,1.07651579]
[1739800662484,6.24415776,2777.2,2777.1,1.79659579]
[1739800662880,5.52410776,2777.2,2777.1,1.79659579]
[1739800663081,0.00539782,2777.3,2777.1,1.07639647]
[1739800663278,0.00539782,2777.3,2777.2,5.03884647]
[1739800663480,2.46439782,2777.3,2777.2,4.50375]
[1739800663681,2.46439782,2777.3,2777.2,5.03861259]
[1739800663881,0.00539782,2777.3,2777.2,5.03861259]
[1739800664080,0.72542782,2777.3,2777.2,5.03861259]
[1739800664480,0.3608,2777.8,2777.2,4.31856259]
[1739800664681,0.71991,2777.8,2777.5,3.2078]
[1739800664883,2.8218,2777.9,2777.7,0.71992]
[1739800665084,3.18089,2777.9,2777.8,0.53449349]
[1739800665876,0.00539782,2778.1,2777.8,3.74229349]
[1739800666082,0.00539782,2778.1,2778.0,0.71985]
[1739800666289,0.00539782,2778.1,2778.0,1.25434349]
[1739800669186,0.00539782,2778.1,2778.0,1.2524385]
[1739800671182,0.00539782,2778.1,2778.0,0.5325885]
[1739800671791,0.00539782,2778.1,2778.0,0.53193269]
[1739800672585,0.00539782,2778.1,2778.0,3.44693269]
[1739800673289,0.72521782,2778.1,2778.0,3.44693269]
[1739800673486,3.78632558,2778.1,2778.0,3.44702834]
[1739800673790,0.00539782,2778.1,2778.0,3.44702834]
[1739800673989,0.00539782,2778.1,2778.0,4.16687834]
[1739800674591,0.00539782,2778.1,2778.0,3.44702834]
[1739800674792,0.00539782,2778.1,2778.0,4.16687834]
[1739800675404,0.72521782,2778.1,2778.0,2.915]
[1739800675699,0.72521782,2778.1,2778.0,3.44686055]
[1739800676095,3.78632558,2778.1,2778.0,3.44686055]
[1739800676401,0.00539782,2778.1,2778.0,3.44686055]
[1739800676600,0.72521782,2778.1,2778.0,3.44686055]
[1739800677597,3.78632558,2778.1,2778.0,3.44686055]
[1739800677801,3.78632558,2778.1,2778.0,2.915]
[1739800677802,4.30902558,2778.1,2778.0,2.915]
[1739800677998,4.30902558,2778.1,2778.0,3.44713333]
[1739800678199,4.83032558,2778.1,2778.0,3.44713333]
[1739800678397,4.11050558,2778.1,2777.8,3.2078]
[1739800678599,0.71985,2778.0,2777.9,0.53224242]
[1739800678798,3.06110776,2778.0,2777.6,0.00539782]
[1739800679098,3.78102776,2777.7,2777.6,0.00539782]
[1739800679298,6.23702776,2777.7,2777.6,0.53789948]
[1739800681405,6.23702776,2777.7,2777.6,0.53770366]
[1739800681903,3.17291,2777.8,2777.6,0.53770366]
[1739800682100,3.17291,2777.8,2777.7,0.53230584]
[1739800683010,3.1729,2777.8,2777.7,0.53230584]
[1739800683399,2.453,2777.8,2777.7,0.53230584]
[1739800683801,3.1729,2777.8,2777.7,0.53230584]
[1739800684408,3.1729,2777.8,2777.7,3.44730584]
[1739800684596,2.453,2777.8,2777.7,3.44730584]
[1739800685104,2.452,2777.8,2777.7,6.65510584]
[1739800685306,3.1719,2777.8,2777.7,3.44730584]
[1739800687308,3.1719,2777.8,2777.7,3.44804879]
[1739800687814,3.1719,2777.8,2777.7,3.44806425]
[1739800690515,3.1719,2777.8,2777.7,0.53306425]
[1739800690710,3.1719,2777.8,2777.6,0.00539782]
[1739800690711,2.452,2777.8,2777.6,0.00539782]
[1739800690917,7.55282776,2777.7,2777.6,0.00539782]
[1739800691212,3.92772,2777.7,2777.6,0.00539782]
[1739800691401,6.37472,2777.7,2777.6,0.53885123]
[1739800691810,3.16692,2777.7,2777.6,0.53885123]
[1739800692205,3.06110776,2777.9,2777.6,0.53885123]
[1739800692509,3.78099776,2777.9,2777.7,0.53345341]
[1739800692712,2.448,2777.9,2777.8,0.53345341]
[1739800692912,0.00539782,2778.1,2777.8,3.74125341]
[1739800693110,0.00539782,2778.1,2778.0,0.71985]
[1739800693311,0.00539782,2778.1,2778.0,2.34770341]
[1739800693512,0.00539782,2778.1,2778.0,2.34744171]
[1739800694009,0.00539782,2778.1,2778.0,2.34742765]
[1739800694516,0.00539782,2778.1,2778.0,5.26242765]
[1739800695622,2.445,2778.5,2778.0,4.54257765]
[1739800695816,2.445,2778.5,2778.4,3.2078]
[1739800696017,2.445,2778.5,2778.4,3.74097765]
[1739800696212,2.445,2778.5,2778.4,4.29291336]
[1739800696419,3.16472,2778.5,2778.4,4.29291336]
[1739800696920,2.445,2778.5,2778.4,4.29291336]
[1739800697116,3.16472,2778.5,2778.4,4.29291336]
[1739800697619,6.22582776,2778.5,2778.4,4.29291336]
[1739800697818,6.22582776,2778.5,2778.4,3.74071336]
[1739800698918,5.50610776,2778.5,2778.4,3.74071336]
[1739800699921,5.50610776,2778.5,2778.4,4.30775129]
[1739800700428,3.06110776,2778.5,2778.4,4.30775129]
[1739800700724,2.44,2778.6,2778.5,0.71972]
[1739800700924,2.44,2778.6,2778.5,1.82937129]
[1739800701125,2.44,2778.6,2778.5,1.10965129]
[1739800701327,2.44,2778.6,2778.5,1.82937129]
[1739800701528,0.00539782,2778.7,2778.5,1.10965129]
[1739800701730,0.00539782,2778.7,2778.6,1.25234129]
[1739800702619,0.72505782,2778.7,2778.6,1.25234129]
[1739800703021,0.72505782,2778.7,2778.6,0.53265129]
[1739800703222,0.72505782,2778.7,2778.6,1.25234129]
[1739800704018,0.00539782,2778.7,2778.6,3.44765129]
[1739800704221,0.00539782,2778.7,2778.6,4.16734129]
[1739800704422,0.00539782,2778.7,2778.6,3.63469]
[1739800704629,0.72506782,2778.7,2778.6,4.16682911]
[1739800704831,0.72506782,2778.7,2778.6,3.44713911]
[1739800705925,1.29636782,2778.7,2778.6,3.44713911]
[1739800707628,1.29636782,2778.7,2778.6,0.53213911]
[1739800707929,0.71979,2778.2,2778.1,2.915]
[1739800708235,0.71979,2778.2,2778.1,3.44728685]
[1739800708933,3.15578,2778.3,2778.1,3.44728685]
[1739800709136,3.15578,2778.3,2778.2,0.53228685]
[1739800710729,2.436,2778.3,2778.2,0.53228685]
[1739800711037,3.15577,2778.3,2778.2,0.53228685]
[1739800712234,2.436,2778.3,2778.2,1.25207685]
[1739800712430,3.15577,2778.3,2778.2,0.53228685]
[1739800712839,0.71979,2778.2,2778.1,2.915]
[1739800713134,4.32759776,2778.2,2778.1,3.44761941]
[1739800715526,3.60780776,2778.2,2778.1,4.16743941]
[1739800715729,0.5467,2778.2,2778.1,3.44761941]
[1739800715929,3.15578,2778.3,2778.1,4.16743941]
[1739800716130,2.436,2778.3,2778.2,0.53261941]
[1739800716331,2.436,2778.3,2778.2,1.25240941]
[1739800716641,3.15577,2778.3,2778.2,0.53261941]
[1739800716835,0.71977,2778.3,2778.2,0.53261941]
[1739800718238,3.15675,2778.4,2778.2,1.25238941]
[1739800718545,3.15675,2778.4,2778.3,3.74087492]
[1739800720631,2.437,2778.4,2778.3,4.46099603]
[1739800721038,3.15674,2778.4,2778.3,4.46099603]
[1739800721239,3.15674,2778.4,2778.3,4.46138203]
[1739800721441,0.71974,2778.4,2778.3,4.46138203]
[1739800722141,3.15573,2778.5,2778.4,0.71974]
[1739800722338,2.436,2778.5,2778.4,1.25355203]
[1739800722640,2.988,2778.6,2778.5,0.71972]
[1739800722942,3.70769,2778.6,2778.5,1.25353203]
[1739800723348,3.70769,2778.6,2778.5,0.53381203]
[1739800726646,2.988,2778.6,2778.5,0.53381203]
[1739800726845,3.70769,2778.6,2778.5,0.53381203]
[1739800729541,3.70769,2778.6,2778.5,0.53417588]
[1739800730143,6.76879776,2778.6,2778.5,0.53417588]
[1739800730343,3.70769,2778.6,2778.5,0.53417588]
[1739800733246,3.70769,2778.6,2778.5,0.53417109]
[1739800733846,2.436,2778.6,2778.5,0.53417109]
[1739800734246,3.15569,2778.6,2778.5,0.53417109]
[1739800734746,3.51569001,2778.6,2778.5,0.53417109]
[1739800734950,0.71969,2778.6,2778.5,0.53417109]
[1739800735150,0.71969,2778.6,2778.4,0.71973]
[1739800735351,0.71969,2778.6,2778.5,0.53435177]
[1739800736450,1.07969001,2778.6,2778.5,0.53435177]
[1739800736650,0.71969,2778.6,2778.5,0.53435177]
[1739800737249,1.07969001,2778.6,2778.5,0.53450654]
[1739800737453,0.71969,2778.6,2778.5,0.53450654]
[1739800737953,1.07969001,2778.6,2778.5,0.53450654]
[1739800738252,0.71969,2778.6,2778.5,0.53450654]
[1739800738455,1.07969001,2778.6,2778.5,0.53450654]
[1739800738655,0.71969,2778.6,2778.5,0.53450654]
[1739800738855,1.07969001,2778.6,2778.5,0.53450654]
[1739800739049,0.71969,2778.6,2778.5,0.53450654]
[1739800739248,1.07969001,2778.6,2778.5,0.53450654]
[1739800740253,0.71969,2778.6,2778.5,0.53450654]
[1739800740453,1.07969001,2778.6,2778.5,0.53450654]
[1739800740651,0.71969,2778.6,2778.5,0.53450654]
[1739800740855,1.07969001,2778.6,2778.5,0.53450654]
[1739800741057,2.44139782,2778.7,2778.5,0.53450753]
[1739800741354,3.16106782,2778.7,2778.6,0.53450029]
[1739800741546,3.52106783,2778.7,2778.6,0.53450029]
[1739800742843,3.52106783,2778.7,2778.4,3.2078]
[1739800742844,0.71972,2778.5,2778.4,3.92754]
[1739800743049,0.71972,2778.5,2778.4,3.74227908]
[1739800744262,2.80139783,2778.7,2778.4,3.74227908]
[1739800744457,0.71971,2778.6,2778.5,0.53447908]
[1739800744964,0.71969,2778.6,2778.5,0.53461757]
[1739800748959,2.80139783,2778.7,2778.5,0.53474391]
[1739800749159,3.52106783,2778.7,2778.6,0.53474488]
[1739800750958,3.52106783,2778.7,2778.6,0.5347859]
[1739800752157,3.52106783,2778.7,2778.6,3.7425859]
[1739800752158,0.00539782,2778.7,2778.6,3.7425859]
[1739800752361,2.436,2778.9,2778.6,3.7425859]
[1739800752565,2.436,2778.9,2778.7,0.5347859]
[1739800752566,3.78074776,2778.8,2778.7,0.5347859]
[1739800752862,4.35564776,2778.8,2778.7,0.5347859]
[1739800753063,5.48874776,2778.8,2778.7,0.5347859]
[1739800753663,5.48874776,2778.8,2778.7,0.53470211]
[1739800754257,5.48874776,2778.8,2778.7,0.53467556]
[1739800754669,5.84874777,2778.8,2778.7,0.53467556]
[1739800755261,5.84874777,2778.8,2778.7,0.53469671]
[1739800757771,0.71982,2778.1,2778.0,3.2078]
[1739800757964,3.78092776,2778.1,2778.0,3.2078]
[1739800759864,3.78092776,2778.1,2777.7,2.38082]
[1739800759865,3.06110776,2778.1,2777.7,2.38082]
[1739800760063,0.7199,2777.8,2777.7,1.6609]
[1739800760668,0.7199,2777.8,2777.6,3.21319782]
[1739800760669,0.71992,2777.7,2777.6,0.00539782]
[1739800760874,2.36582,2777.7,2777.6,0.00539782]
[1739800761465,0.7201,2777.1,2776.9,1.31336363]
[1739800761672,6.21720776,2777.1,2776.9,1.31336363]
[1739800762265,5.49710776,2777.1,2776.9,1.31336363]
[1739800762571,5.49710776,2777.1,2776.8,0.72016]
[1739800763372,5.49710776,2777.1,2776.7,3.93336782]
[1739800763373,6.21719776,2777.1,2776.7,3.93336782]
[1739800763568,6.21719776,2777.1,2776.8,0.72016]
[1739800763768,6.21720776,2777.1,2776.7,3.93336782]
[1739800763963,0.72011,2777.0,2776.7,3.93336782]
[1739800764571,0.72011,2777.0,2776.7,3.21319782]
[1739800764766,5.49710776,2777.1,2776.7,3.21319782]
[1739800764966,0.72016,2776.8,2776.7,3.21319782]
[1739800765768,0.72015,2776.9,2776.7,3.21319782]
[1739800765968,0.72016,2776.8,2776.7,3.21319782]
[1739800767280,4.14206776,2776.8,2776.7,3.21319782]
[1739800770375,3.42190776,2776.8,2776.7,3.21319782]
[1739800770579,4.14206776,2776.8,2776.7,3.21319782]
[1739800771578,3.42190776,2776.8,2776.7,3.21319782]
[1739800771778,4.14206776,2776.8,2776.7,3.21319782]
[1739800772377,5.49710776,2777.1,2776.7,3.93337782]
[1739800772675,3.06110776,2777.1,2776.7,3.21319782]
[1739800772869,2.436,2777.1,2777.0,3.92788]
[1739800773068,0.00539782,2777.3,2777.0,3.2078]
[1739800773273,0.00539782,2777.3,2777.2,0.72005]
[1739800775177,0.00539782,2777.3,2777.1,1.7029]
[1739800775383,5.50250558,2777.3,2776.6,3.2078]
[1739800775588,3.78126776,2776.8,2776.7,0.55349782]
[1739800775887,3.06110776,2776.8,2776.7,0.55349782]
[1739800776084,3.78126776,2776.8,2776.7,0.55349782]
[1739800776985,3.78126776,2776.8,2776.7,0.00539782]
[1739800782584,5.49710776,2776.8,2776.7,0.00539782]
[1739800782781,3.06110776,2776.8,2776.7,0.55369782]
[1739800782979,6.21726776,2776.8,2776.7,0.00539782]
[1739800784881,5.49710776,2776.8,2776.2,0.5483]
[1739800785081,3.78139776,2776.3,2776.2,0.5483]
[1739800785281,6.21739776,2776.3,2776.2,0.5483]
[1739800785587,6.21739776,2776.3,2776.1,3.7729]
[1739800785588,0.72031,2776.2,2776.1,3.7729]
[1739800785780,0.72031,2776.2,2776.1,3.2078]
[1739800785980,1.26221,2776.2,2776.1,3.2078]
[1739800787080,1.54250668,2776.2,2776.1,3.2078]
[1739800787583,1.26221,2776.2,2776.1,3.2078]
[1739800788685,0.72037,2776.0,2775.9,0.52799782]
[1739800788885,3.78147776,2776.0,2775.9,0.52799782]
[1739800789085,3.06110776,2776.0,2775.9,0.52799782]
[1739800789688,3.06110776,2776.0,2775.9,1.24838782]
[1739800789886,5.49710776,2776.3,2775.9,0.52799782]
[1739800790083,3.06110776,2776.0,2775.9,0.52799782]
[1739800790284,3.06110776,2776.0,2775.9,1.24838782]
[1739800790686,3.06110776,2776.0,2775.9,0.52799782]
[1739800790890,5.49710776,2776.3,2775.9,0.52799782]
[1739800791085,5.49710776,2776.3,2776.1,3.2078]
[1739800792091,6.21740776,2776.3,2776.1,3.2078]
[1739800792288,3.06110776,2776.3,2776.1,3.2078]
[1739800792488,3.06110776,2776.6,2776.2,0.5631]
[1739800792683,2.436,2776.5,2776.4,0.72025]
[1739800793092,2.436,2776.5,2776.3,0.72027]
[1739800793489,3.15624,2776.5,2776.4,0.5492]
[1739800794890,2.436,2776.5,2776.4,0.5492]
[1739800795081,2.436,2776.5,2776.4,4.47726]
[1739800795287,2.436,2776.5,2776.4,3.757]
[1739800795487,2.436,2776.5,2776.4,4.47726]
[1739800796790,20.3258,2776.8,2776.6,0.7202]
[1739800796990,2.436,2776.7,2776.6,0.7202]
[1739800797990,22.7618,2776.8,2776.7,0.72018]
[1739800798295,22.7618,2776.8,2776.7,3.92798]
[1739800800686,2.436,2777.0,2776.7,3.2078]
[1739800800892,2.436,2777.2,2776.8,1.1146]
[1739800801193,6.21716776,2777.2,2777.0,3.92791]
[1739800801391,5.49710776,2777.2,2777.0,3.2078]
[1739800801694,0.00539782,2777.3,2777.2,0.72005]
[1739800802399,2.7968,2777.8,2777.7,0.71992]
[1739800802693,3.5167,2777.8,2777.7,3.2078]
[1739800803093,2.7968,2777.8,2777.7,3.2078]
[1739800803392,2.7968,2777.8,2777.7,3.92772]
[1739800803595,3.42190776,2778.0,2777.7,3.92772]
[1739800803596,0.36619782,2778.0,2777.7,3.2078]
[1739800803788,0.00539782,2778.0,2777.9,0.71987]
[1739800804589,0.92820001,2778.8,2777.9,0.71987]
[1739800804590,2.436,2779.0,2777.9,8.436]
[1739800804791,19.965,2779.6,2778.9,3.2078]
[1739800804996,3.78057776,2779.5,2779.0,0.5315]
[1739800805197,0.36000001,2779.5,2779.0,1.25107]
[1739800805490,0.36000001,2779.5,2779.2,3.2078]
[1739800805688,0.00539782,2779.5,2779.2,7.4188]
[1739800805885,0.00539782,2779.5,2779.4,0.71948]
[1739800806091,0.71912,2780.8,2779.4,4.211]
[1739800806389,0.27885689,2781.6,2780.7,0.71915]
[1739800806591,3.06110776,2780.9,2780.7,4.211]
[1739800806786,3.06110776,2780.9,2780.2,3.2078]
[1739800806987,3.2078,2781.3,2780.5,3.2078]
[1739800807189,3.06110776,2781.0,2780.9,3.2078]
[1739800807391,5.49610776,2781.0,2780.6,3.2078]
[1739800807590,3.2078,2781.6,2780.7,0.71915]
[1739800807591,0.00539782,2781.2,2780.7,0.71915]
[1739800807792,0.00539782,2781.2,2780.9,3.2078]
[1739800808194,3.2078,2782.2,2780.9,3.2078]
[1739800808387,2.444,2782.1,2781.2,3.2078]
[1739800808589,3.82246429,2781.8,2781.2,3.2078]
[1739800808888,2.447,2781.7,2781.2,3.2078]
[1739800809290,3.56780001,2782.5,2781.5,3.2078]
[1739800809493,6.6484643,2782.8,2782.2,3.2078]
[1739800809698,0.00539782,2782.3,2782.2,3.2078]
[1739800810492,3.21319782,2782.3,2781.7,0.00539782]
[1739800810698,3.82246429,2781.8,2781.7,0.00539782]
[1739800810897,2.474,2781.8,2781.7,0.00539782]
[1739800811495,3.82246429,2782.2,2781.7,0.00539782]
[1739800811689,0.00539782,2782.3,2782.0,3.2078]
[1739800812094,3.82246429,2782.2,2782.0,3.2078]
[1739800812300,0.71886,2781.8,2781.7,0.00539782]
[1739800812600,13.34372858,2781.8,2780.7,7.4188]
[1739800812895,13.34372858,2781.8,2780.4,0.5767]
[1739800812896,44.62246429,2781.0,2780.4,0.5767]
[1739800813104,3.82246429,2780.7,2780.2,3.2078]
[1739800813297,3.82246429,2780.4,2780.0,0.5643]
[1739800813496,4.54177429,2780.1,2779.9,3.2078]
[1739800813699,4.54177429,2780.1,2779.9,3.21319782]
[1739800814001,6.42813,2780.0,2779.9,0.00539782]
[1739800814202,5.7088,2780.0,2779.2,3.2078]
[1739800814401,3.82246429,2779.6,2779.2,3.2078]
[1739800814601,6.32546429,2779.6,2779.2,3.2078]
[1739800815301,2.503,2779.6,2779.2,3.2078]
[1739800816193,2.501,2779.7,2779.2,3.2078]
[1739800816393,2.501,2779.7,2779.5,3.2078]
[1739800816899,2.5,2779.7,2779.5,3.2078]
[1739800817203,2.499,2779.7,2779.5,3.2078]
[1739800817903,2.498,2779.9,2779.5,3.92724]
[1739800818095,3.82246429,2780.1,2779.6,3.2078]
[1739800818494,2.499,2780.1,2779.6,3.2078]
[1739800818697,6.32046429,2780.4,2779.9,3.2078]
[1739800818900,2.498,2780.4,2780.2,3.2078]
[1739800820293,0.72459782,2780.5,2780.2,3.2078]
[1739800820703,0.71923,2780.4,2780.2,3.2078]
[1739800820908,0.72460782,2780.5,2780.2,3.2078]
[1739800821497,0.00539782,2780.5,2780.2,3.2078]
[1739800821997,0.71925,2780.3,2780.2,3.2078]
[1739800822197,0.71933,2780.0,2779.6,3.2078]
[1739800822399,3.82246429,2779.9,2779.6,3.2078]
[1739800822798,3.22532,2780.1,2779.6,3.2078]
[1739800823198,3.22532,2780.1,2779.6,3.92723]
[1739800823402,2.506,2780.1,2779.6,3.2078]
[1739800823599,0.7194,2779.8,2779.6,3.2078]
[1739800823899,0.71941,2779.7,2779.6,3.2078]
[1739800824107,3.22341,2779.7,2779.6,3.2078]
[1739800824306,2.504,2779.7,2779.6,3.2078]
[1739800824500,23.51280001,2780.7,2779.6,9.2078]
[1739800824699,6.32646429,2780.3,2779.9,3.2078]
[1739800824904,0.71933,2780.1,2779.6,3.2078]
[1739800825092,4.54180429,2780.0,2779.6,3.2078]
[1739800825296,4.54179429,2780.0,2779.6,3.2078]
[1739800825499,0.71928,2780.2,2779.6,3.2078]
[1739800825698,6.32646429,2780.3,2779.9,3.2078]
[1739800826200,3.22326,2780.3,2779.9,3.2078]
[1739800826798,2.509,2780.3,2779.9,3.2078]
[1739800827006,0.71929,2780.2,2779.9,3.2078]
[1739800827393,2.509,2780.3,2779.9,3.92714]
[1739800827599,2.507,2780.4,2780.2,3.92707]
[1739800827900,0.71917,2780.7,2780.2,3.2078]
[1739800828099,0.71926,2780.3,2779.9,3.2078]
[1739800828299,0.71926,2780.3,2779.7,12.44821858]
[1739800828300,6.33986211,2780.5,2780.2,3.2078]
[1739800828510,6.33986211,2780.5,2779.9,3.2078]
[1739800828804,7.05906211,2780.5,2780.0,0.71931]
[1739800829000,6.33986211,2780.5,2779.9,3.2078]
[1739800829420,0.7193,2780.2,2779.9,3.2078]
[1739800829634,0.71924,2780.4,2779.9,3.92714]
[1739800829858,0.00539782,2780.5,2780.2,3.2078]
[1739800830501,0.00539782,2780.5,2780.4,0.71923]
[1739800830699,0.00539782,2780.5,2780.4,4.211]
[1739800830902,0.00539782,2780.5,2780.4,4.93023]
[1739800831406,0.00539782,2780.5,2780.4,4.211]
[1739800831904,3.82786211,2780.5,2780.2,3.2078]
[1739800832108,0.71925,2780.3,2780.2,3.2078]
[1739800832502,1.79826,2780.2,2779.4,3.2078]
[1739800832703,4.54188429,2779.7,2779.4,3.2078]
[1739800832901,3.82246429,2779.7,2779.4,3.2078]
[1739800833602,6.33946429,2779.7,2779.4,3.2078]
[1739800834308,7.05887429,2779.7,2779.4,3.2078]
[1739800834502,6.33946429,2779.7,2779.4,3.2078]
[1739800834803,6.33746429,2779.7,2779.4,3.2078]
[1739800835003,0.71944,2779.6,2779.4,3.2078]
[1739800835204,0.71946,2779.5,2779.4,3.2078]
[1739800835405,6.33746429,2779.7,2779.4,3.2078]
[1739800835604,7.05688429,2779.7,2779.4,3.2078]
[1739800836104,6.33746429,2779.7,2779.4,3.2078]
[1739800836308,0.71945,2779.6,2779.4,3.2078]
[1739800836503,6.33746429,2779.7,2779.4,3.2078]
[1739800836809,2.513,2779.6,2779.4,3.2078]
[1739800837006,3.23243,2779.6,2779.4,3.2078]
[1739800837202,2.513,2779.6,2779.4,3.2078]
[1739800837403,3.23243,2779.6,2779.4,3.2078]
[1739800837802,2.513,2779.6,2779.4,3.2078]
[1739800838002,3.23245,2779.6,2779.4,3.2078]
[1739800838204,2.513,2779.6,2779.4,3.2078]
[1739800839308,0.71946,2779.5,2779.4,3.2078]
[1739800839705,2.513,2779.6,2779.4,3.2078]
[1739800839909,3.23245,2779.6,2779.4,3.2078]
[1739800840106,2.513,2779.6,2779.4,3.2078]
[1739800840307,2.513,2779.6,2779.4,3.92728]
[1739800840508,2.513,2779.6,2779.4,3.2078]
[1739800840714,2.513,2779.6,2779.5,0.71946]
[1739800841516,2.513,2779.6,2779.4,3.2078]
[1739800841814,2.513,2779.6,2779.4,3.92727]
[1739800842010,2.513,2779.6,2779.4,3.2078]
[1739800842217,4.54192429,2779.5,2779.4,3.2078]
[1739800843012,3.82246429,2779.5,2779.4,3.2078]
[1739800843214,4.54192429,2779.5,2779.4,3.2078]
[1739800843420,3.82246429,2779.5,2779.4,3.2078]
[1739800843611,3.82246429,2779.5,2779.1,3.21319782]
[1739800843909,3.82246429,2779.2,2779.1,0.00539782]
[1739800844113,10.27080429,2779.2,2779.1,0.00539782]
[1739800844415,10.27080429,2779.2,2778.2,9.26664229]
[1739800844416,3.82246429,2778.6,2778.2,9.26664229]
[1739800844612,6.34446429,2778.6,2778.2,3.7603]
[1739800844811,6.34446429,2778.6,2778.3,0.71976]
[1739800845014,6.34446429,2778.6,2778.2,3.7603]